bitfinex/quotes_BTCUSD_20260221
["timestamp","ask_amount","ask_price","bid_price","bid_amount"]
[1771657761058,0.07361635,67920.0,67914.0,0.07362057]
[1771657761272,0.07361539,67921.0,67915.0,0.07362138]
[1771657761673,0.07361568,67922.0,67917.0,0.00022]
[1771657763039,0.07361499,67921.0,67915.0,0.07362138]
[1771657763208,0.07361706,67920.0,67913.0,0.07362352]
[1771657763445,0.0970571,67920.0,67913.0,0.07362352]
[1771657763723,0.0736173,67919.0,67913.0,0.07362352]
[1771657764131,0.07361706,67920.0,67914.0,0.07362235]
[1771657764321,0.0736163,67920.0,67914.0,0.07362235]
[1771657764877,0.07361728,67919.0,67913.0,0.07362322]
[1771657767130,0.0736163,67920.0,67914.0,0.07362236]
[1771657767327,0.07361721,67919.0,67914.0,0.07362236]
[1771657768284,0.0736163,67920.0,67914.0,0.07362236]
[1771657769527,0.07361722,67919.0,67914.0,0.07362236]
[1771657769847,0.07361722,67919.0,67913.0,0.07384322]
[1771657772071,0.07361722,67919.0,67914.0,0.07362241]
[1771657772463,0.0736163,67920.0,67914.0,0.07362241]
[1771657773118,0.07361712,67919.0,67914.0,0.07362241]
[1771657773313,0.00016,67920.0,67900.0,0.01854934]
[1771657773521,0.02344004,67911.0,67906.0,0.07346543]
[1771657773665,0.02344004,67911.0,67907.0,0.07362968]
[1771657773864,0.02344004,67911.0,67908.0,0.07362873]
[1771657777240,0.02344004,67911.0,67906.0,0.07362938]
[1771657777558,0.02344004,67911.0,67908.0,0.00022]
[1771657778930,0.02344004,67911.0,67908.0,0.07384894]
[1771657779694,0.07362591,67911.0,67904.0,0.07363316]
[1771657779879,0.07363594,67902.0,67896.0,0.07362168]
[1771657780035,0.0736363,67903.0,67897.0,0.07364093]
[1771657780238,0.0978957,67904.0,67897.0,0.07364093]
[1771657780239,0.0978957,67904.0,67898.0,0.07363985]
[1771657781061,0.0978957,67904.0,67898.0,0.07403007]
[1771657781262,0.0978957,67904.0,67898.0,0.00039022]
[1771657782343,0.07363465,67903.0,67898.0,0.00039022]
[1771657782749,0.0736359,67902.0,67898.0,0.00039022]
[1771657782976,0.09789624,67902.0,67898.0,0.00039022]
[1771657784058,0.07363674,67901.0,67898.0,0.00039022]
[1771657784679,0.07363813,67900.0,67898.0,0.00061022]
[1771657784888,0.07363878,67899.0,67898.0,0.00061022]
[1771657785262,0.07364204,67896.0,67895.0,0.00022]
[1771657785675,0.02426034,67898.0,67895.0,0.00022]
[1771657785886,0.07363922,67899.0,67895.0,0.00022]
[1771657786481,0.07363827,67901.0,67895.0,0.00022]
[1771657786686,0.07363594,67902.0,67896.0,0.09364162]
[1771657787016,0.07363594,67902.0,67896.0,0.02000016]
[1771657787171,0.07363594,67902.0,67896.0,0.09364218]
[1771657788635,0.07363662,67901.0,67896.0,0.02000016]
[1771657789375,0.07363662,67901.0,67895.0,0.07386121]
[1771657790383,0.07363804,67900.0,67895.0,0.00022]
[1771657793535,0.07363804,67900.0,67895.0,0.02022016]
[1771657794945,0.07363835,67901.0,67895.0,0.07386251]
[1771657795146,0.07363835,67901.0,67896.0,0.02000016]
[1771657796259,0.07363801,67900.0,67895.0,0.00022]
[1771657796763,0.07363801,67900.0,67895.0,0.02022016]
[1771657797161,0.07363801,67900.0,67895.0,0.09386324]
[1771657798674,0.07363801,67900.0,67895.0,0.00022]
[1771657798873,0.07363801,67900.0,67895.0,0.02022016]
[1771657799506,0.07363835,67901.0,67895.0,0.09386265]
[1771657799944,0.07363784,67900.0,67895.0,0.09386265]
[1771657800447,0.07363784,67900.0,67895.0,0.02022016]
[1771657800590,0.07363835,67901.0,67895.0,0.09386312]
[1771657801164,0.07363774,67900.0,67895.0,0.09386312]
[1771657801393,0.07363444,67903.0,67882.0,0.000168]
[1771657801598,0.07364768,67891.0,67890.0,4.606e-05]
[1771657802259,0.07364652,67892.0,67890.0,4.606e-05]
[1771657803491,0.07364746,67891.0,67890.0,4.606e-05]
[1771657804929,0.07364652,67892.0,67890.0,4.606e-05]
[1771657806977,0.07364746,67891.0,67890.0,0.00026606]
[1771657807356,0.07364652,67892.0,67890.0,0.00026606]
[1771657807576,0.07364714,67893.0,67890.0,0.00026606]
[1771657807781,0.07364675,67892.0,67890.0,0.00026606]
[1771657808503,0.07364746,67891.0,67890.0,0.00026606]
[1771657808914,0.07364879,67890.0,67886.0,0.00022]
[1771657809110,0.07376578,67890.0,67886.0,0.00022]
[1771657809611,0.00011699,67890.0,67886.0,0.00022]
[1771657810113,0.00011699,67890.0,67886.0,0.07387277]
[1771657810485,0.00011699,67890.0,67886.0,0.00022]
[1771657811115,0.02377252,67903.0,67892.0,0.02000016]
[1771657811316,0.07363923,67899.0,67893.0,0.07364489]
[1771657812628,0.07363923,67899.0,67894.0,0.07364418]
[1771657812823,0.07363923,67899.0,67893.0,0.07364489]
[1771657814635,0.07379966,67900.0,67894.0,0.07364387]
[1771657817442,0.00016,67900.0,67895.0,0.07364284]
[1771657817840,0.00016,67900.0,67895.0,0.07385004]
[1771657818045,0.07379778,67900.0,67895.0,0.07385004]
[1771657818469,0.00016,67900.0,67895.0,0.07385004]
[1771657818677,0.07379771,67900.0,67895.0,0.07385004]
[1771657819475,0.07379789,67900.0,67895.0,0.07385004]
[1771657819678,0.00016,67900.0,67895.0,0.07384993]
[1771657821207,0.00016,67900.0,67895.0,0.09385009]
[1771657821406,0.07379778,67900.0,67895.0,0.02020736]
[1771657821611,0.07399778,67900.0,67895.0,0.02020736]
[1771657824829,0.07363886,67899.0,67895.0,0.02020736]
[1771657827111,0.07364038,67898.0,67895.0,0.02020736]
[1771657827306,0.07364204,67896.0,67893.0,0.00022]
[1771657827530,0.07364317,67895.0,67893.0,0.00022]
[1771657827735,0.07364317,67895.0,67890.0,0.02022016]
[1771657828063,0.07364204,67896.0,67890.0,0.0938685]
[1771657829359,0.07364314,67895.0,67890.0,0.07386834]
[1771657829560,0.07364204,67896.0,67891.0,0.02000016]
[1771657832431,0.07364337,67895.0,67891.0,0.02000016]
[1771657833483,0.07364368,67895.0,67891.0,0.02000016]
[1771657839873,0.02290002,67897.0,67890.0,0.00022]
[1771657840219,0.07364746,67891.0,67890.0,0.00022]
[1771657840544,0.07364692,67893.0,67890.0,0.00022]
[1771657841573,0.07364692,67893.0,67890.0,0.02022016]
[1771657843163,0.07364692,67893.0,67891.0,0.00022]
[1771657846197,0.07364445,67894.0,67891.0,0.00022]
[1771657847081,0.07364445,67894.0,67891.0,0.02022016]
[1771657847823,0.07364572,67893.0,67891.0,0.02022016]
[1771657850628,0.07364445,67894.0,67891.0,0.02022016]
[1771657851460,0.07364533,67893.0,67891.0,0.02022016]
[1771657851824,0.07364445,67894.0,67891.0,0.02022016]
[1771657852469,0.0002,67895.0,67891.0,0.02022016]
[1771657852672,0.07364158,67897.0,67891.0,0.0938671]
[1771657852876,0.07369903,67897.0,67891.0,0.0938671]
[1771657853468,0.07369903,67897.0,67891.0,0.07386694]
[1771657853678,0.07369903,67897.0,67892.0,0.01996016]
[1771657855896,0.0736421,67896.0,67892.0,0.01996016]
[1771657858681,0.07389903,67897.0,67892.0,0.01996016]
[1771657859832,0.07364206,67896.0,67892.0,0.01996016]
[1771657863233,0.07384206,67896.0,67892.0,0.01996016]
[1771657867565,0.07384206,67896.0,67892.0,0.019814]
[1771657869653,0.07384243,67896.0,67892.0,0.019814]
[1771657872073,0.07384243,67896.0,67892.0,0.01966783]
[1771657873490,0.0002,67896.0,67892.0,0.01966783]
[1771657873716,0.0736452,67894.0,67891.0,0.02014666]
[1771657877697,0.07364562,67893.0,67891.0,0.02014666]
[1771657880195,0.0736468,67892.0,67890.0,0.00022]
[1771657882566,0.0736471,67893.0,67890.0,0.00022]
[1771657883608,0.07364669,67892.0,67890.0,0.00022]
[1771657883821,0.0736471,67893.0,67890.0,0.00022]
[1771657885933,0.0736471,67893.0,67890.0,7.383e-05]
[1771657886384,0.073646,67894.0,67890.0,7.383e-05]
[1771657889470,0.073646,67893.0,67890.0,7.383e-05]
[1771657890680,0.073646,67894.0,67890.0,7.383e-05]
[1771657891060,0.07384243,67896.0,67890.0,0.07372197]
[1771657891261,0.07364335,67895.0,67891.0,0.01992666]
[1771657891973,0.02364332,67895.0,67891.0,0.02265773]
[1771657892480,0.02364332,67895.0,67890.0,7.383e-05]
[1771657894815,0.07364428,67894.0,67890.0,7.383e-05]
[1771657895012,0.07364637,67893.0,67890.0,7.383e-05]
[1771657895316,0.07364637,67894.0,67890.0,7.383e-05]
[1771657898323,0.07384502,67895.0,67890.0,7.383e-05]
[1771657898722,0.07364422,67894.0,67890.0,7.383e-05]
[1771657901395,0.07384422,67894.0,67890.0,7.383e-05]
[1771657903619,0.07384422,67894.0,67888.0,0.07379818]
[1771657904945,0.07384422,67894.0,67889.0,0.07364959]
[1771657907049,0.0002,67894.0,67889.0,0.07364959]
[1771657908381,0.07384424,67894.0,67889.0,0.07364959]
[1771657908976,0.0736453,67893.0,67889.0,0.00022]
[1771657909163,0.07384424,67894.0,67889.0,0.00022]
[1771657909674,0.07384424,67894.0,67889.0,0.07386956]
[1771657911289,0.0002,67894.0,67889.0,0.07386956]
[1771657911520,0.07384429,67894.0,67889.0,0.07386956]
[1771657913224,0.07384429,67894.0,67889.0,0.00022]
[1771657916331,0.0002,67894.0,67889.0,0.00022]
[1771657916629,0.0002,67894.0,67889.0,0.0738692]
[1771657919239,0.07384425,67894.0,67889.0,0.0738692]
[1771657920293,0.0002,67894.0,67889.0,0.0738692]
[1771657920499,0.07365889,67897.0,67889.0,0.00022]
[1771657920647,0.02364246,67896.0,67889.0,0.0441033]
[1771657920847,0.02364246,67896.0,67890.0,0.07364815]
[1771657921891,0.07364323,67895.0,67890.0,0.07364815]
[1771657922449,0.0002,67894.0,67890.0,0.07364815]
[1771657922604,0.0002,67894.0,67889.0,0.07386751]
[1771657922808,0.0002,67894.0,67890.0,0.07364853]
[1771657934610,0.0002,67894.0,67890.0,0.07350246]
[1771657935279,0.0002,67894.0,67890.0,0.07372246]
[1771657937756,0.11750444,67909.0,67896.0,0.02254992]
[1771657937908,0.16095933,67908.0,67903.0,0.07363412]
[1771657938071,0.01379652,67907.0,67903.0,0.07363412]
[1771657938276,0.01379652,67907.0,67902.0,0.07363358]
[1771657938478,0.14716281,67908.0,67903.0,0.073634]
[1771657938676,0.14716281,67907.0,67902.0,0.07363358]
[1771657938976,0.14716281,67906.0,67902.0,0.07363358]
[1771657939201,0.14716281,67905.0,67902.0,0.07363358]
[1771657939414,0.07362939,67908.0,67902.0,0.07363358]
[1771657939614,0.07363016,67907.0,67902.0,0.07331519]
[1771657939906,0.07363016,67907.0,67901.0,0.07363473]
[1771657940113,0.0736314,67906.0,67899.0,0.07363711]
[1771657940546,0.0736326,67905.0,67899.0,0.07363711]
[1771657941252,0.0736335,67904.0,67898.0,0.07363814]
[1771657943035,0.07383284,67906.0,67899.0,0.07363844]
[1771657943433,0.07383284,67906.0,67900.0,0.07363738]
[1771657943780,0.07363241,67905.0,67900.0,0.07363765]
[1771657944182,0.07363241,67905.0,67899.0,0.07363844]
[1771657946717,0.07363344,67904.0,67898.0,0.07363813]
[1771657947186,0.07363344,67904.0,67898.0,0.07349208]
[1771657949025,0.07363344,67904.0,67899.0,0.07363868]
[1771657952083,0.07363241,67905.0,67899.0,0.07363868]
[1771657953964,0.07363241,67905.0,67899.0,0.07349263]
[1771657954286,0.07363337,67904.0,67898.0,0.07371208]
[1771657957900,0.07402351,67904.0,67898.0,0.07371208]
[1771657963061,0.07422351,67904.0,67898.0,0.07371208]
[1771657964374,0.07363447,67903.0,67898.0,0.07371208]
[1771657964875,0.07422351,67904.0,67898.0,0.07371208]
[1771657967289,0.07363445,67903.0,67898.0,0.07371208]
[1771657967951,0.07422351,67904.0,67898.0,0.07371208]
[1771657968581,0.07363453,67903.0,67898.0,0.07371208]
[1771657969474,0.07422351,67904.0,67898.0,0.07371208]
[1771657969695,0.07363458,67903.0,67898.0,0.07371208]
[1771657969904,0.07363458,67903.0,67898.0,0.07356602]
[1771657970247,0.07422351,67904.0,67898.0,0.07356602]
[1771657970862,0.07363458,67903.0,67898.0,0.07356602]
[1771657971066,0.07363458,67903.0,67898.0,0.00022]
[1771657973148,0.07363458,67903.0,67898.0,0.07385982]
[1771657973304,0.07422351,67904.0,67898.0,0.07385982]
[1771657973619,0.07363445,67903.0,67898.0,0.07385982]
[1771657973777,0.07422351,67904.0,67898.0,0.07385982]
[1771657975686,0.07363502,67903.0,67898.0,0.00022]
[1771657979858,0.07422351,67904.0,67898.0,0.07385976]
[1771657980317,0.07363459,67903.0,67898.0,0.07385976]
[1771657981058,0.07422351,67904.0,67898.0,0.07385976]
[1771657981613,0.0736349,67903.0,67898.0,0.00022]
[1771657984373,0.0736349,67903.0,67898.0,0.07385986]
[1771657984589,0.0736349,67903.0,67898.0,0.00022]
[1771657984788,0.0736349,67903.0,67898.0,0.07385983]
[1771657985297,0.0736349,67903.0,67898.0,0.00022]
[1771657986284,0.0736349,67903.0,67898.0,0.07385972]
[1771657988855,0.0736349,67903.0,67898.0,0.00022]
[1771657989659,0.0001226,67909.0,67899.0,0.02315997]
[1771657989897,0.07363271,67905.0,67899.0,0.0736387]
[1771657990386,0.07363294,67906.0,67899.0,0.0736387]
[1771657990514,0.07363201,67907.0,67901.0,0.07363646]
[1771657991337,0.07363122,67906.0,67900.0,0.07363692]
[1771657991545,0.07363242,67905.0,67900.0,0.07363692]
[1771657991742,0.07363122,67906.0,67900.0,0.07363692]
[1771657994943,0.07383122,67906.0,67900.0,0.07363692]
[1771657995362,0.07383122,67906.0,67901.0,0.07363654]
[1771657996397,0.07383122,67906.0,67900.0,0.07363692]
[1771657996537,0.0002,67906.0,67901.0,0.07363638]
[1771658000276,0.07363281,67905.0,67899.0,0.07363841]
[1771658000477,0.07363394,67904.0,67898.0,0.0738593]
[1771658001388,0.07363394,67904.0,67899.0,0.07363876]
[1771658001935,0.07363368,67904.0,67899.0,0.07363876]
[1771658002772,0.07363419,67905.0,67899.0,0.07363876]
[1771658005373,0.07363419,67905.0,67900.0,0.07363767]
[1771658005525,0.07363346,67904.0,67899.0,0.07363876]
[1771658005896,0.07363419,67905.0,67899.0,0.07363876]
[1771658007909,0.07383419,67905.0,67899.0,0.07363876]
[1771658015242,0.07383419,67905.0,67900.0,0.07363765]
[1771658016227,0.07383419,67905.0,67890.0,0.00038]
[1771658016228,0.01829625,67904.0,67890.0,0.00038]
[1771658016435,0.01829625,67904.0,67886.0,0.17714]
[1771658016436,0.09194205,67893.0,67887.0,0.07365123]
[1771658016642,0.09194221,67894.0,67888.0,0.07379787]
[1771658016845,0.09194221,67894.0,67888.0,0.00014778]
[1771658017045,0.07364596,67894.0,67888.0,0.00014778]
[1771658017203,0.07364596,67894.0,67888.0,0.07379839]
[1771658017627,0.07364701,67892.0,67888.0,0.00014778]
[1771658017834,0.07364553,67893.0,67888.0,0.00014778]
[1771658019501,0.07364673,67892.0,67888.0,0.00014778]
[1771658020458,0.07364553,67893.0,67888.0,0.00014778]
[1771658021255,0.07364553,67893.0,67891.0,0.00022]
[1771658021775,0.07364597,67894.0,67891.0,0.00022]
[1771658023421,0.0736415,67897.0,67891.0,0.07386668]
[1771658023881,0.07364211,67896.0,67891.0,0.00022]
[1771658025861,0.0736415,67897.0,67891.0,0.07386706]
[1771658027738,0.0736422,67896.0,67891.0,0.07386706]
[1771658028145,0.0736415,67897.0,67891.0,0.07386706]
[1771658031423,0.07364213,67896.0,67891.0,0.07386706]
[1771658032459,0.0736415,67897.0,67891.0,0.07386706]
[1771658033493,0.07364239,67896.0,67891.0,0.00022]
[1771658037375,0.07364239,67896.0,67891.0,0.07386745]
[1771658037772,0.0736415,67897.0,67891.0,0.07386745]
[1771658038994,0.07364228,67896.0,67891.0,0.07386745]
[1771658040743,0.07364228,67896.0,67891.0,0.00022]
[1771658042831,0.0738415,67897.0,67891.0,0.07386719]
[1771658044402,0.07364221,67896.0,67891.0,0.07386719]
[1771658048547,0.07364221,67896.0,67891.0,0.00022]
[1771658049393,0.07364221,67896.0,67891.0,0.07386735]
[1771658051095,0.0738415,67897.0,67891.0,0.07386735]
[1771658052174,0.07364204,67896.0,67891.0,0.07386735]
[1771658054137,0.07384204,67896.0,67891.0,0.07386735]
[1771658061693,0.07384204,67896.0,67891.0,0.00022]
[1771658066070,0.07384204,67896.0,67891.0,0.0738674]
[1771658067418,0.07384204,67896.0,67891.0,0.07372146]
[1771658067618,0.07384204,67896.0,67891.0,7.406e-05]
[1771658075172,0.07364315,67895.0,67890.0,0.0734289]
[1771658079223,0.07364315,67895.0,67889.0,0.0738692]
[1771658081776,0.07364315,67895.0,67889.0,0.07372326]
[1771658091098,0.07364421,67894.0,67889.0,0.07372326]
[1771658096347,0.07364421,67894.0,67888.0,0.07379671]
[1771658097407,0.07384315,67895.0,67889.0,0.07364904]
[1771658097961,0.07384315,67895.0,67889.0,0.07386904]
[1771658098806,0.07364459,67894.0,67889.0,0.00022]
[1771658100241,0.07364459,67894.0,67889.0,0.07386927]
[1771658100424,0.03334161,67895.0,67889.0,0.07386927]
[1771658100639,0.07384263,67896.0,67889.0,0.00022]
[1771658100834,0.07364354,67895.0,67889.0,0.07386915]
[1771658101471,0.073646,67893.0,67889.0,0.00022]
[1771658101634,0.073646,67894.0,67889.0,0.00022]
[1771658103295,0.07364539,67893.0,67889.0,0.00022]
[1771658104052,0.073646,67894.0,67889.0,0.00022]
[1771658104652,0.073846,67894.0,67889.0,0.00022]
[1771658104872,0.07364544,67893.0,67889.0,0.00022]
[1771658105301,0.073846,67894.0,67889.0,0.00022]
[1771658108312,0.07364564,67893.0,67889.0,0.00022]
[1771658108469,0.01810319,67892.0,67888.0,0.00014778]
[1771658111421,0.01810319,67892.0,67889.0,0.00022]
[1771658112799,0.07364564,67893.0,67889.0,0.00022]
[1771658115183,0.073846,67894.0,67889.0,0.00022]
[1771658115385,0.01810319,67893.0,67889.0,0.00022]
[1771658118592,0.073846,67894.0,67889.0,0.00022]
[1771658119027,0.07364546,67893.0,67889.0,0.00022]
[1771658120092,0.09194919,67894.0,67889.0,0.00022]
[1771658120907,0.09194919,67894.0,67889.0,7.404e-05]
[1771658121390,0.09194919,67894.0,67888.0,0.07358061]
[1771658123752,0.073846,67894.0,67888.0,0.07358061]
[1771658124311,0.073846,67894.0,67889.0,0.07364943]
[1771658125488,0.0002,67894.0,67889.0,0.07364943]
[1771658126499,0.07384421,67894.0,67889.0,0.07364943]
[1771658126841,0.07384421,67894.0,67888.0,0.07380061]
[1771658128493,0.07384421,67894.0,67888.0,0.07365467]
[1771658128699,0.0002,67894.0,67889.0,0.07364956]
[1771658129260,0.0002,67894.0,67889.0,0.07364959]
[1771658131576,0.0002,67894.0,67890.0,0.07364854]
[1771658131780,0.0002,67894.0,67889.0,0.07364959]
[1771658133417,0.01830319,67894.0,67889.0,0.07364959]
[1771658136690,0.0002,67894.0,67889.0,0.07364959]
[1771658138354,0.01943019,67894.0,67889.0,0.07364959]
[1771658138714,0.0002,67894.0,67889.0,0.07364959]
[1771658144014,0.0002,67894.0,67889.0,0.07350367]
[1771658144635,0.13661203,67907.0,67890.0,0.00016]
[1771658144882,0.07363371,67904.0,67898.0,0.07363961]
[1771658145189,0.07363453,67903.0,67897.0,0.07364092]
[1771658145562,0.07363371,67904.0,67898.0,0.07363962]
[1771658145761,0.07363455,67903.0,67898.0,0.07363962]
[1771658146782,0.0738339,67905.0,67899.0,0.07363844]
[1771658147188,0.07363392,67904.0,67898.0,0.07363962]
[1771658147756,0.0738339,67905.0,67898.0,0.07363962]
[1771658147962,0.0738339,67905.0,67899.0,0.07363861]
[1771658150908,0.07363345,67904.0,67898.0,0.07363962]
[1771658153485,0.07363345,67904.0,67899.0,0.07363871]
[1771658153785,0.07363345,67904.0,67898.0,0.07363962]
[1771658156297,0.0738339,67905.0,67899.0,0.07363836]
[1771658156793,0.0002,67904.0,67899.0,0.07363836]
[1771658157771,0.02371314,67918.0,67904.0,0.07363282]
[1771658157772,0.17714001,67909.0,67904.0,0.07363282]
[1771658157982,0.17714001,67909.0,67905.0,0.09851377]
[1771658158182,0.17714001,67909.0,67906.0,0.07363103]
[1771658158383,0.17714001,67909.0,67905.0,0.09851377]
[1771658158780,0.17714001,67909.0,67905.0,0.07363189]
[1771658158987,0.17714001,67909.0,67904.0,0.07363146]
[1771658159550,0.17714001,67909.0,67905.0,0.07363222]
[1771658160420,0.2507683,67909.0,67903.0,0.07363426]
[1771658163474,0.2509683,67909.0,67903.0,0.07363426]
[1771658164040,0.07362904,67908.0,67903.0,0.07363426]
[1771658164221,0.2509683,67909.0,67903.0,0.07363426]
[1771658165740,0.07362917,67908.0,67903.0,0.07363426]
[1771658167181,0.0740083,67909.0,67903.0,0.07363426]
[1771658167481,0.00038001,67909.0,67904.0,0.07363279]
[1771658167883,0.00038001,67909.0,67905.0,0.09746475]
[1771658168460,0.00038001,67909.0,67905.0,0.07363183]
[1771658168661,0.00038001,67909.0,67904.0,0.07363279]
[1771658170002,0.0002,67908.0,67904.0,0.07363279]
[1771658172798,0.0002,67908.0,67904.0,0.09668348]
[1771658175706,0.0002,67908.0,67904.0,0.07363279]
[1771658175876,0.0002,67908.0,67903.0,0.07363239]
[1771658176326,0.0002,67908.0,67902.0,0.07363375]
[1771658176945,0.07382905,67908.0,67902.0,0.07363375]
[1771658178441,0.0002,67908.0,67903.0,0.073634]
[1771658178643,0.0002,67908.0,67904.0,0.07363283]
[1771658182397,0.0002,67908.0,67903.0,0.073634]
[1771658182572,0.07382911,67908.0,67902.0,0.07363344]
[1771658183518,0.07382911,67908.0,67903.0,0.00022]
[1771658187207,0.07363051,67907.0,67903.0,0.00022]
[1771658187433,0.07363051,67907.0,67901.0,0.07363486]
[1771658188109,0.07363051,67907.0,67902.0,0.07363535]
[1771658188325,0.09194349,67907.0,67902.0,0.07363535]
[1771658189683,0.01831298,67905.0,67896.0,0.0738616]
[1771658189887,0.07363516,67903.0,67897.0,0.02364067]
[1771658190691,0.09722676,67904.0,67898.0,0.07363958]
[1771658190933,0.09722676,67904.0,67902.0,0.00022]
[1771658191234,0.07363444,67903.0,67902.0,0.00022]
[1771658192124,0.09722676,67904.0,67896.0,0.07386176]
[1771658192125,0.07363336,67904.0,67896.0,0.07386176]
[1771658192433,0.07363613,67902.0,67896.0,0.07386176]
[1771658193141,0.07363629,67903.0,67897.0,0.07364053]
[1771658196832,0.07363629,67903.0,67898.0,0.07363986]
[1771658199271,0.07363629,67903.0,67897.0,0.07386053]
[1771658199434,0.07363629,67903.0,67898.0,0.07363976]
[1771658201898,0.07363506,67904.0,67898.0,0.07363976]
[1771658209403,0.0736347,67903.0,67898.0,0.07363976]
[1771658209605,0.0736347,67903.0,67898.0,0.06863976]
[1771658209809,0.0736347,67903.0,67897.0,0.07386053]
[1771658209963,0.07363506,67904.0,67898.0,0.07363937]
[1771658210301,0.07363506,67904.0,67899.0,0.07363848]
[1771658211679,0.07383506,67904.0,67899.0,0.07363848]
[1771658213785,0.0002,67904.0,67901.0,0.07363628]
[1771658213941,0.0002,67904.0,67901.0,0.07363656]
[1771658214271,0.0002,67904.0,67900.0,0.07363693]
[1771658217236,0.0002,67904.0,67901.0,0.07363615]
[1771658220488,0.0002,67904.0,67900.0,0.07363602]
[1771658220695,0.0002,67904.0,67899.0,0.07363696]
[1771658221566,0.0002,67904.0,67900.0,0.07363767]
[1771658232201,0.0002,67904.0,67901.0,0.07363655]
[1771658233301,0.0002,67904.0,67900.0,0.07363767]
[1771658233731,0.0002,67904.0,67901.0,0.0736365]
[1771658234119,0.0002,67904.0,67902.0,0.07363548]
[1771658234605,0.0002,67904.0,67903.0,0.07363444]
[1771658237585,0.14744857,67908.0,67903.0,0.07363444]
[1771658237782,0.0738082,67909.0,67903.0,0.07363444]
[1771658238333,0.22125303,67909.0,67903.0,0.07363444]
[1771658242790,0.14762484,67909.0,67900.0,0.02259901]
[1771658242996,0.07363153,67906.0,67900.0,0.07363696]
[1771658243142,0.09664248,67907.0,67901.0,0.07363635]
[1771658244213,0.0736318,67906.0,67900.0,0.07363762]
[1771658244910,0.07363233,67905.0,67900.0,0.07363762]
[1771658245258,0.0736318,67906.0,67900.0,0.07363762]
[1771658250342,0.0738318,67906.0,67900.0,0.07363762]
[1771658256518,0.07363228,67905.0,67900.0,0.07363762]
[1771658256869,0.07363228,67905.0,67900.0,0.07385762]
[1771658257378,0.0738318,67906.0,67900.0,0.07385762]
[1771658261570,0.0738318,67906.0,67901.0,0.07363649]
[1771658262395,0.0002,67906.0,67901.0,0.07363649]
[1771658263943,0.07383123,67906.0,67901.0,0.07363649]
[1771658265407,0.07383123,67906.0,67900.0,0.07385762]
[1771658266555,0.07383123,67906.0,67901.0,0.07363654]
[1771658269362,0.0002,67906.0,67901.0,0.07363654]
[1771658269857,0.0002,67906.0,67902.0,0.07363551]
[1771658270483,0.0002,67906.0,67901.0,0.07363654]
[1771658270686,0.0002,67906.0,67902.0,0.07363538]
[1771658271565,0.0002,67906.0,67901.0,0.07363654]
[1771658273831,0.0002,67906.0,67902.0,0.07363514]
[1771658274013,0.0002,67906.0,67901.0,0.07363654]
[1771658275836,0.0002,67906.0,67902.0,0.0736355]
[1771658276011,0.0738312,67906.0,67901.0,0.07363654]
[1771658276418,0.0738312,67906.0,67900.0,0.07385598]
[1771658280213,0.07363231,67905.0,67900.0,0.00022]
[1771658280421,0.07363502,67903.0,67898.0,0.00022]
[1771658280619,0.07363503,67904.0,67898.0,0.07385959]
[1771658282941,0.07363503,67904.0,67899.0,0.07363858]
[1771658283557,0.07363503,67904.0,67898.0,0.07385959]
[1771658283784,0.07363409,67905.0,67899.0,0.0736385]
[1771658284191,0.07363409,67905.0,67900.0,0.00022]
[1771658284399,0.07363409,67905.0,67900.0,0.07385769]
[1771658285443,0.0002,67906.0,67901.0,0.07363629]
[1771658288329,0.07383169,67906.0,67900.0,0.07385592]
[1771658289349,0.07363232,67905.0,67900.0,0.00022]
[1771658290576,0.07363232,67905.0,67901.0,0.00022]
[1771658300990,0.07383169,67906.0,67901.0,0.00022]
[1771658301531,0.07363228,67905.0,67901.0,0.00022]
[1771658305589,0.07383169,67906.0,67901.0,0.00022]
[1771658305796,0.07383169,67906.0,67901.0,0.02354376]
[1771658306237,0.07383169,67906.0,67901.0,0.00022]
[1771658308054,0.07363231,67905.0,67901.0,0.00022]
[1771658311391,0.07363026,67907.0,67901.0,0.07385608]
[1771658311576,0.02363166,67906.0,67902.0,0.02332376]
[1771658311971,0.02363166,67906.0,67901.0,0.00022]
[1771658314430,0.07363235,67905.0,67901.0,0.00022]
[1771658335248,0.07383309,67906.0,67901.0,0.00022]
[1771658337700,0.07363274,67905.0,67901.0,0.00022]
[1771658339301,0.07383309,67906.0,67901.0,0.00022]
[1771658340716,0.07383309,67906.0,67901.0,0.0738566]
[1771658341009,0.07383309,67906.0,67901.0,0.00022]
[1771658342315,0.07363201,67907.0,67901.0,0.07385622]
[1771658342547,0.3371901,67919.0,67904.0,0.0240076]
[1771658342664,0.07362474,67912.0,67906.0,0.07363045]
[1771658342863,0.07362407,67913.0,67906.0,0.07363045]
[1771658343361,0.07362485,67912.0,67906.0,0.07363045]
[1771658343562,0.07362485,67912.0,67906.0,0.07363066]
[1771658343761,0.07362639,67911.0,67905.0,0.07363045]
[1771658344383,0.07362252,67914.0,67904.0,0.0240076]
[1771658344581,0.07362252,67914.0,67901.0,0.00022]
[1771658344582,0.07362794,67909.0,67901.0,0.00022]
[1771658344819,0.07363215,67906.0,67901.0,0.00022]
[1771658345019,0.01837318,67904.0,67900.0,0.00038]
[1771658345433,0.07363276,67905.0,67900.0,0.00038]
[1771658345860,0.0736339,67904.0,67900.0,0.00038]
[1771658347761,0.07363376,67904.0,67900.0,0.00038]
[1771658348650,0.07363276,67905.0,67900.0,0.00038]
[1771658358053,0.07363276,67905.0,67900.0,0.07401765]
[1771658358867,0.07383301,67906.0,67900.0,0.07401765]
[1771658365532,0.0002,67906.0,67901.0,0.07363618]
[1771658365838,0.0002,67906.0,67902.0,0.07363525]
[1771658366129,0.0002,67906.0,67903.0,0.07363416]
[1771658367141,0.0002,67906.0,67902.0,0.07363525]
[1771658368220,0.0002,67906.0,67902.0,0.09753541]
[1771658368420,0.07362824,67909.0,67902.0,0.07363476]
[1771658368621,0.07362824,67909.0,67903.0,0.0736341]
[1771658369406,0.07362931,67908.0,67902.0,0.09753492]
[1771658371952,0.07362743,67910.0,67902.0,0.02390016]
[1771658372596,0.0736284,67909.0,67903.0,0.07363414]
[1771658374316,0.07362908,67908.0,67903.0,0.07363414]
[1771658382034,0.07382908,67908.0,67903.0,0.07363414]
[1771658382787,0.07382908,67908.0,67903.0,0.07369155]
[1771658384756,0.0002,67908.0,67904.0,0.09646448]
[1771658385351,0.0002,67908.0,67904.0,0.07363324]
[1771658385558,0.0002,67908.0,67903.0,0.07369002]
[1771658387164,0.07382939,67908.0,67903.0,5.741e-05]
[1771658387462,0.07382939,67908.0,67903.0,0.0736918]
[1771658387689,0.07382939,67908.0,67903.0,5.741e-05]
[1771658387818,0.0002,67908.0,67903.0,5.741e-05]
[1771658388016,0.07382996,67908.0,67903.0,5.741e-05]
[1771658388257,0.07382996,67908.0,67903.0,0.07369175]
[1771658388459,0.07382996,67908.0,67902.0,0.07363507]
[1771658388802,0.07382996,67908.0,67903.0,0.00022]
[1771658389968,0.04601212,67909.0,67903.0,0.00022]
[1771658390488,0.0736296,67908.0,67903.0,0.00022]